[Event "Titled Tuesday Blitz December 27 Early 2022"]
[White "Beerdsen, Thomas"]
[Black "Najdin, Danil"]
[WhiteFideId "1030108"]
[BlackFideId "4172426"]
[WhiteElo "2507"]
[BlackElo "2235"]
[Result "1-0"]
[Round "01"]
[TimeControl "180+2"]
[Date "2022.12.27"]
[WhiteClock "0:01:24"]
[BlackClock "0:01:03"]

1. b3 {[%clk 0:02:59]}  e5 {[%clk 0:02:57]} 2. Bb2 {[%clk 0:03:00]}  Nc6 {[%clk 0:02:57]} 3. e3 {[%clk 0:03:00]}  Nf6 {[%clk 0:02:57]} 4. Bb5 {[%clk 0:03:00]}  Bd6 {[%clk 0:02:57]} 5. Na3 {[%clk 0:03:01]}  Na5 {[%clk 0:02:55]} 6. Nh3 {[%clk 0:02:57]}  a6 {[%clk 0:02:53]} 7. Be2 {[%clk 0:02:57]}  b5 {[%clk 0:02:53]} 8. c4 {[%clk 0:02:57]}  Qe7 {[%clk 0:02:45]} 9. Nc2 {[%clk 0:02:54]}  Bb7 {[%clk 0:02:42]} 10. O-O {[%clk 0:02:48]}  bxc4 {[%clk 0:02:29]} 11. bxc4 {[%clk 0:02:49]}  O-O {[%clk 0:02:29]} 12. Rb1 {[%clk 0:02:41]}  Rab8 {[%clk 0:02:23]} 13. d4 {[%clk 0:02:35]}  exd4 {[%clk 0:02:19]} 14. Nxd4 {[%clk 0:02:36]}  Be4 {[%clk 0:02:17]} 15. Bd3 {[%clk 0:02:32]}  Bxd3 {[%clk 0:02:10]} 16. Qxd3 {[%clk 0:02:33]}  Qe4 {[%clk 0:02:11]} 17. Qc3 {[%clk 0:02:14]}  Bb4 {[%clk 0:02:09]} 18. Qc1 {[%clk 0:02:07]}  c5 {[%clk 0:01:58]} 19. Nb3 {[%clk 0:01:53]}  Nxc4 {[%clk 0:01:51]} 20. Bxf6 {[%clk 0:01:46]}  gxf6 {[%clk 0:01:52]} 21. Nf4 {[%clk 0:01:42]}  Na3 {[%clk 0:01:48]} 22. Rb2 {[%clk 0:01:36]}  c4 {[%clk 0:01:28]} 23. Nd2 {[%clk 0:01:36]}  Qc6 {[%clk 0:01:28]} 24. Rxb4 {[%clk 0:01:34]}  Rxb4 {[%clk 0:01:28]} 25. Qxa3 {[%clk 0:01:35]}  Rfb8 {[%clk 0:01:28]} 26. Qc3 {[%clk 0:01:31]}  d5 {[%clk 0:01:10]} 27. Nh5 {[%clk 0:01:31]}  R8b6 {[%clk 0:01:10]} 28. e4 {[%clk 0:01:25]}  d4 {[%clk 0:01:03]} 29. Qxd4 {[%clk 0:01:24]}  c3 {[%clk 0:01:03]} 30. Qd8+ {[%clk 0:01:24]} 1-0


[Site "https://www.chess.com"]

[Event "Titled Tuesday Blitz December 27 Early 2022"]
[White "Bilan, Danila"]
[Black "White, John S."]
[WhiteFideId "24161918"]
[BlackFideId "2502348"]
[WhiteElo "2303"]
[BlackElo "2235"]
[Result "1-0"]
[Round "01"]
[TimeControl "180+2"]
[Date "2022.12.27"]
[WhiteClock "0:00:06"]
[BlackClock "0:00:03"]

1. d4 {[%clk 0:02:55]}  Nf6 {[%clk 0:02:57]} 2. Nf3 {[%clk 0:02:55]}  g6 {[%clk 0:02:56]} 3. Bg5 {[%clk 0:02:52]}  Bg7 {[%clk 0:02:55]} 4. Nbd2 {[%clk 0:02:48]}  O-O {[%clk 0:02:53]} 5. e4 {[%clk 0:02:47]}  d6 {[%clk 0:02:50]} 6. c3 {[%clk 0:02:43]}  c5 {[%clk 0:02:45]} 7. dxc5 {[%clk 0:02:40]}  dxc5 {[%clk 0:02:44]} 8. Bc4 {[%clk 0:02:41]}  Nc6 {[%clk 0:02:41]} 9. a4 {[%clk 0:02:33]}  b6 {[%clk 0:02:30]} 10. O-O {[%clk 0:01:51]}  Bb7 {[%clk 0:02:27]} 11. e5 {[%clk 0:01:29]}  Ng4 {[%clk 0:02:12]} 12. e6 {[%clk 0:01:24]}  f6 {[%clk 0:02:05]} 13. Bf4 {[%clk 0:01:14]}  Nge5 {[%clk 0:01:43]} 14. Nxe5 {[%clk 0:00:56]}  fxe5 {[%clk 0:01:41]} 15. Bg3 {[%clk 0:00:44]}  Qd6 {[%clk 0:01:37]} 16. Qe2 {[%clk 0:00:38]}  Na5 {[%clk 0:01:23]} 17. Ba2 {[%clk 0:00:33]}  Rad8 {[%clk 0:01:12]} 18. Ne4 {[%clk 0:00:19]}  Qc6 {[%clk 0:01:09]} 19. f3 {[%clk 0:00:17]}  c4 {[%clk 0:01:02]} 20. Ng5 {[%clk 0:00:11]}  Rf5 {[%clk 0:00:40]} 21. Nf7 {[%clk 0:00:10]}  Rc8 {[%clk 0:00:33]} 22. Bb1 {[%clk 0:00:09]}  Rh5 {[%clk 0:00:29]} 23. Nxe5 {[%clk 0:00:08]}  Qxe6 {[%clk 0:00:25]} 24. Re1 {[%clk 0:00:08]}  Rd8 {[%clk 0:00:18]} 25. Bc2 {[%clk 0:00:07]}  Nc6 {[%clk 0:00:13]} 26. Nxc6 {[%clk 0:00:07]}  Qxc6 {[%clk 0:00:12]} 27. Rad1 {[%clk 0:00:06]}  Re8 {[%clk 0:00:09]} 28. Be4 {[%clk 0:00:06]}  Qc8 {[%clk 0:00:07]} 29. Bxb7 {[%clk 0:00:05]}  Qxb7 {[%clk 0:00:08]} 30. Qxc4+ {[%clk 0:00:06]}  Kh8 {[%clk 0:00:06]} 31. Qf7 {[%clk 0:00:06]}  Rf8 {[%clk 0:00:03]} 32. Qxe7 {[%clk 0:00:06]} 1-0


[Site "https://www.chess.com"]

[Event "Titled Tuesday Blitz December 27 Early 2022"]
[White "Boros, Denes"]
[Black "Bazarov, Konstantin"]
[WhiteFideId "722340"]
[BlackFideId "4137000"]
[WhiteElo "2406"]
[BlackElo "2235"]
[Result "1-0"]
[Round "01"]
[TimeControl "180+2"]
[Date "2022.12.27"]
[WhiteClock "0:00:52"]
[BlackClock "0:00:08"]

1. d4 {[%clk 0:03:00]}  d5 {[%clk 0:02:58]} 2. Nc3 {[%clk 0:03:01]}  c6 {[%clk 0:02:57]} 3. Nf3 {[%clk 0:03:01]}  Bf5 {[%clk 0:02:55]} 4. Nh4 {[%clk 0:03:00]}  Bg6 {[%clk 0:02:51]} 5. g3 {[%clk 0:02:59]}  e6 {[%clk 0:02:50]} 6. Bg2 {[%clk 0:02:59]}  Bb4 {[%clk 0:02:50]} 7. O-O {[%clk 0:02:59]}  Nf6 {[%clk 0:02:47]} 8. Nxg6 {[%clk 0:02:51]}  hxg6 {[%clk 0:02:46]} 9. Nb1 {[%clk 0:02:51]}  Bd6 {[%clk 0:02:39]} 10. c4 {[%clk 0:02:50]}  Nbd7 {[%clk 0:02:37]} 11. Qb3 {[%clk 0:02:49]}  Rb8 {[%clk 0:02:32]} 12. Nc3 {[%clk 0:02:46]}  O-O {[%clk 0:02:25]} 13. Bg5 {[%clk 0:02:44]}  Be7 {[%clk 0:02:23]} 14. Bf4 {[%clk 0:02:44]}  dxc4 {[%clk 0:02:22]} 15. Qxc4 {[%clk 0:02:45]}  Nb6 {[%clk 0:02:17]} 16. Qb3 {[%clk 0:02:41]}  Ra8 {[%clk 0:02:15]} 17. Rfd1 {[%clk 0:02:40]}  Nfd5 {[%clk 0:02:12]} 18. Bd2 {[%clk 0:02:39]}  Nxc3 {[%clk 0:02:05]} 19. bxc3 {[%clk 0:02:36]}  Qc7 {[%clk 0:02:04]} 20. a4 {[%clk 0:02:35]}  Nd7 {[%clk 0:02:00]} 21. Bf4 {[%clk 0:02:30]}  Qb6 {[%clk 0:01:58]} 22. Qc4 {[%clk 0:02:27]}  Qa5 {[%clk 0:01:51]} 23. Qb3 {[%clk 0:02:17]}  Qb6 {[%clk 0:01:50]} 24. Qc2 {[%clk 0:02:17]}  a5 {[%clk 0:01:43]} 25. h4 {[%clk 0:02:13]}  Nf6 {[%clk 0:01:38]} 26. Rab1 {[%clk 0:02:11]}  Qa6 {[%clk 0:01:38]} 27. e4 {[%clk 0:01:58]}  c5 {[%clk 0:01:32]} 28. Bf1 {[%clk 0:01:42]}  Qc6 {[%clk 0:01:28]} 29. d5 {[%clk 0:01:42]}  exd5 {[%clk 0:01:23]} 30. exd5 {[%clk 0:01:43]}  Qc8 {[%clk 0:01:11]} 31. d6 {[%clk 0:01:42]}  Bd8 {[%clk 0:01:09]} 32. Qb3 {[%clk 0:01:29]}  Ra7 {[%clk 0:01:06]} 33. d7 {[%clk 0:01:29]}  Qc6 {[%clk 0:00:54]} 34. Bg2 {[%clk 0:01:25]}  c4 {[%clk 0:00:49]} 35. Bxc6 {[%clk 0:01:16]}  cxb3 {[%clk 0:00:48]} 36. Bb5 {[%clk 0:01:16]}  Be7 {[%clk 0:00:43]} 37. Be3 {[%clk 0:01:10]}  Raa8 {[%clk 0:00:41]} 38. Rxb3 {[%clk 0:01:11]}  Ng4 {[%clk 0:00:37]} 39. Bb6 {[%clk 0:01:11]}  Kh7 {[%clk 0:00:30]} 40. c4 {[%clk 0:01:09]}  Bd8 {[%clk 0:00:27]} 41. Bc5 {[%clk 0:01:09]}  Rg8 {[%clk 0:00:26]} 42. Re1 {[%clk 0:01:07]}  Nf6 {[%clk 0:00:25]} 43. Rd3 {[%clk 0:01:02]}  b6 {[%clk 0:00:23]} 44. Bd6 {[%clk 0:01:00]}  Kh6 {[%clk 0:00:18]} 45. Kg2 {[%clk 0:00:59]}  g5 {[%clk 0:00:18]} 46. hxg5+ {[%clk 0:00:58]}  Kxg5 {[%clk 0:00:17]} 47. Rd4 {[%clk 0:00:56]}  Kg6 {[%clk 0:00:15]} 48. c5 {[%clk 0:00:54]}  bxc5 {[%clk 0:00:13]} 49. Bd3+ {[%clk 0:00:55]}  Kg5 {[%clk 0:00:09]} 50. Bf4+ {[%clk 0:00:52]}  Kg4 {[%clk 0:00:09]} 51. f3+ {[%clk 0:00:51]}  Kh5 {[%clk 0:00:08]} 52. Rh1# {[%clk 0:00:52]} 1-0


[Site "https://www.chess.com"]

[Event "Titled Tuesday Blitz December 27 Early 2022"]
[White "Buscar, Michael"]
[Black "Orozbaev, Eldiar"]
[WhiteFideId "2603616"]
[BlackFideId "13802240"]
[WhiteElo "2041"]
[BlackElo "2235"]
[Result "0-1"]
[Round "01"]
[TimeControl "180+2"]
[Date "2022.12.27"]
[WhiteClock "0:01:21"]
[BlackClock "0:02:14"]

1. Nf3 {[%clk 0:02:58]}  d6 {[%clk 0:02:57]} 2. g3 {[%clk 0:02:58]}  e5 {[%clk 0:02:57]} 3. Bg2 {[%clk 0:02:58]}  Nc6 {[%clk 0:02:57]} 4. d3 {[%clk 0:02:58]}  f5 {[%clk 0:02:57]} 5. e4 {[%clk 0:02:56]}  Nf6 {[%clk 0:02:56]} 6. Nc3 {[%clk 0:02:56]}  Be7 {[%clk 0:02:53]} 7. O-O {[%clk 0:02:54]}  O-O {[%clk 0:02:52]} 8. a4 {[%clk 0:02:51]}  Qe8 {[%clk 0:02:42]} 9. exf5 {[%clk 0:02:51]}  Bxf5 {[%clk 0:02:42]} 10. Re1 {[%clk 0:02:50]}  Bg4 {[%clk 0:02:38]} 11. Qd2 {[%clk 0:02:47]}  Qh5 {[%clk 0:02:33]} 12. Qe3 {[%clk 0:02:33]}  Rae8 {[%clk 0:02:26]} 13. Nd2 {[%clk 0:02:33]}  Nd4 {[%clk 0:02:25]} 14. Nce4 {[%clk 0:01:32]}  Nxc2 {[%clk 0:02:21]} 15. Nxf6+ {[%clk 0:01:32]}  Bxf6 {[%clk 0:02:20]} 16. Qxa7 {[%clk 0:01:32]}  Nxe1 {[%clk 0:02:19]} 17. Qxb7 {[%clk 0:01:32]}  Bg5 {[%clk 0:02:16]} 18. Ne4 {[%clk 0:01:21]}  Bxc1 {[%clk 0:02:14]} 0-1


[Site "https://www.chess.com"]

[Event "Titled Tuesday Blitz December 27 Early 2022"]
[White "Christiansen, Johan-Sebastian"]
[Black "Eggleston, Thomas A"]
[WhiteFideId "1512668"]
[BlackFideId "412139"]
[WhiteElo "2579"]
[BlackElo "2215"]
[Result "1-0"]
[Round "01"]
[TimeControl "180+2"]
[Date "2022.12.27"]
[WhiteClock "0:00:38"]
[BlackClock "0:00:09"]

1. e4 {[%clk 0:03:00]}  e6 {[%clk 0:03:00]} 2. Nf3 {[%clk 0:02:59]}  d5 {[%clk 0:02:59]} 3. e5 {[%clk 0:02:59]}  c5 {[%clk 0:02:59]} 4. c3 {[%clk 0:02:59]}  Nc6 {[%clk 0:02:58]} 5. d4 {[%clk 0:02:59]}  Qb6 {[%clk 0:02:57]} 6. Be2 {[%clk 0:02:58]}  f6 {[%clk 0:02:57]} 7. O-O {[%clk 0:02:55]}  fxe5 {[%clk 0:02:52]} 8. dxe5 {[%clk 0:02:48]}  Nh6 {[%clk 0:02:49]} 9. c4 {[%clk 0:02:43]}  d4 {[%clk 0:02:32]} 10. Re1 {[%clk 0:02:43]}  Bd7 {[%clk 0:02:27]} 11. Nbd2 {[%clk 0:02:39]}  Nf7 {[%clk 0:02:21]} 12. Ne4 {[%clk 0:02:38]}  O-O-O {[%clk 0:02:00]} 13. Bf4 {[%clk 0:02:37]}  h6 {[%clk 0:01:58]} 14. Bg3 {[%clk 0:02:32]}  g5 {[%clk 0:01:58]} 15. Nf6 {[%clk 0:02:30]}  Be7 {[%clk 0:01:47]} 16. a3 {[%clk 0:02:22]}  h5 {[%clk 0:01:35]} 17. h4 {[%clk 0:02:15]}  g4 {[%clk 0:01:33]} 18. Ng5 {[%clk 0:02:12]}  Nfxe5 {[%clk 0:01:27]} 19. Nxd7 {[%clk 0:02:12]}  Rxd7 {[%clk 0:01:21]} 20. Bf1 {[%clk 0:02:10]}  Bxg5 {[%clk 0:01:15]} 21. hxg5 {[%clk 0:02:09]}  Ng6 {[%clk 0:01:05]} 22. Rxe6 {[%clk 0:02:07]}  h4 {[%clk 0:01:01]} 23. Bh2 {[%clk 0:01:55]}  Qxb2 {[%clk 0:00:49]} 24. Rb1 {[%clk 0:01:47]}  Qxa3 {[%clk 0:00:46]} 25. Rxc6+ {[%clk 0:01:47]}  Kd8 {[%clk 0:00:37]} 26. Rxg6 {[%clk 0:01:43]}  g3 {[%clk 0:00:37]} 27. Bd3 {[%clk 0:01:25]}  gxh2+ {[%clk 0:00:29]} 28. Kxh2 {[%clk 0:01:26]}  Qa5 {[%clk 0:00:25]} 29. Qg4 {[%clk 0:01:20]}  Qc7+ {[%clk 0:00:25]} 30. Kg1 {[%clk 0:01:19]}  h3 {[%clk 0:00:24]} 31. Rh6 {[%clk 0:01:12]}  h2+ {[%clk 0:00:23]} 32. Kh1 {[%clk 0:01:12]}  Re8 {[%clk 0:00:19]} 33. Rxh2 {[%clk 0:01:08]}  Rde7 {[%clk 0:00:19]} 34. g3 {[%clk 0:00:51]}  a5 {[%clk 0:00:13]} 35. Qf3 {[%clk 0:00:43]}  a4 {[%clk 0:00:12]} 36. Bf5 {[%clk 0:00:40]}  a3 {[%clk 0:00:11]} 37. Qd5+ {[%clk 0:00:38]}  Rd7 {[%clk 0:00:09]} 38. Bxd7 {[%clk 0:00:38]} 1-0


[Site "https://www.chess.com"]

[Event "Titled Tuesday Blitz December 27 Early 2022"]
[White "Clawitter, Craig"]
[Black "Aghasiyev, Kamal"]
[WhiteFideId "2023105"]
[BlackFideId "13402854"]
[WhiteElo "2050"]
[BlackElo "2441"]
[Result "1/2-1/2"]
[Round "01"]
[TimeControl "180+2"]
[Date "2022.12.27"]
[WhiteClock "0:00:07"]
[BlackClock "0:00:29"]

1. e4 {[%clk 0:03:00]}  c5 {[%clk 0:02:56]} 2. Nf3 {[%clk 0:03:01]}  e6 {[%clk 0:02:52]} 3. d4 {[%clk 0:03:01]}  cxd4 {[%clk 0:02:52]} 4. Nxd4 {[%clk 0:03:02]}  a6 {[%clk 0:02:52]} 5. Bd3 {[%clk 0:03:02]}  Ne7 {[%clk 0:02:49]} 6. c4 {[%clk 0:02:57]}  Nbc6 {[%clk 0:02:48]} 7. Nc2 {[%clk 0:02:52]}  d5 {[%clk 0:02:47]} 8. Nc3 {[%clk 0:02:49]}  d4 {[%clk 0:02:42]} 9. Ne2 {[%clk 0:02:45]}  e5 {[%clk 0:02:43]} 10. O-O {[%clk 0:02:43]}  Ng6 {[%clk 0:02:43]} 11. a3 {[%clk 0:02:38]}  a5 {[%clk 0:02:40]} 12. b3 {[%clk 0:02:37]}  Bd6 {[%clk 0:02:39]} 13. f4 {[%clk 0:02:15]}  exf4 {[%clk 0:02:28]} 14. Nxf4 {[%clk 0:02:14]}  Nxf4 {[%clk 0:02:25]} 15. Bxf4 {[%clk 0:02:14]}  O-O {[%clk 0:02:25]} 16. e5 {[%clk 0:01:54]}  Bxe5 {[%clk 0:02:22]} 17. Bxe5 {[%clk 0:01:55]}  Nxe5 {[%clk 0:02:22]} 18. Bxh7+ {[%clk 0:01:55]}  Kxh7 {[%clk 0:02:22]} 19. Qh5+ {[%clk 0:01:56]}  Kg8 {[%clk 0:02:22]} 20. Qxe5 {[%clk 0:01:56]}  d3 {[%clk 0:02:20]} 21. Nd4 {[%clk 0:01:27]}  Re8 {[%clk 0:02:19]} 22. Qf4 {[%clk 0:01:23]}  Qe7 {[%clk 0:01:53]} 23. Rad1 {[%clk 0:00:43]}  Qe3+ {[%clk 0:01:43]} 24. Qxe3 {[%clk 0:00:43]}  Rxe3 {[%clk 0:01:44]} 25. Kf2 {[%clk 0:00:44]}  Re4 {[%clk 0:01:41]} 26. Rxd3 {[%clk 0:00:43]}  b6 {[%clk 0:01:37]} 27. Nb5 {[%clk 0:00:19]}  Be6 {[%clk 0:01:15]} 28. Nc7 {[%clk 0:00:14]}  Rc8 {[%clk 0:01:08]} 29. Nxe6 {[%clk 0:00:14]}  Rxe6 {[%clk 0:01:08]} 30. Re1 {[%clk 0:00:14]}  Rxe1 {[%clk 0:01:00]} 31. Kxe1 {[%clk 0:00:14]}  a4 {[%clk 0:01:00]} 32. Rc3 {[%clk 0:00:12]}  axb3 {[%clk 0:01:00]} 33. Kd2 {[%clk 0:00:12]}  Kf8 {[%clk 0:00:52]} 34. Kc1 {[%clk 0:00:12]}  Ke7 {[%clk 0:00:51]} 35. Kb2 {[%clk 0:00:12]}  Kd6 {[%clk 0:00:51]} 36. Kxb3 {[%clk 0:00:13]}  Kc6 {[%clk 0:00:51]} 37. Rf3 {[%clk 0:00:12]}  f6 {[%clk 0:00:50]} 38. Rg3 {[%clk 0:00:12]}  Rc7 {[%clk 0:00:51]} 39. Kb4 {[%clk 0:00:12]}  Re7 {[%clk 0:00:50]} 40. h4 {[%clk 0:00:10]}  Re4 {[%clk 0:00:48]} 41. h5 {[%clk 0:00:10]}  Rh4 {[%clk 0:00:47]} 42. Rxg7 {[%clk 0:00:10]}  Rxh5 {[%clk 0:00:48]} 43. Rg6 {[%clk 0:00:09]}  Kb7 {[%clk 0:00:35]} 44. g4 {[%clk 0:00:09]}  Rh4 {[%clk 0:00:34]} 45. Rxf6 {[%clk 0:00:08]}  Rxg4 {[%clk 0:00:34]} 46. Kb5 {[%clk 0:00:08]}  Rg5+ {[%clk 0:00:34]} 47. Kb4 {[%clk 0:00:08]}  Rg1 {[%clk 0:00:33]} 48. Kb5 {[%clk 0:00:07]}  Rb1+ {[%clk 0:00:32]} 49. Ka4 {[%clk 0:00:07]}  Rb2 {[%clk 0:00:32]} 50. Rh6 {[%clk 0:00:06]}  Rb1 {[%clk 0:00:30]} 51. Rg6 {[%clk 0:00:06]}  Rb2 {[%clk 0:00:30]} 52. Rh6 {[%clk 0:00:07]}  Rb1 {[%clk 0:00:30]} 53. Rg6 {[%clk 0:00:07]}  Rb2 {[%clk 0:00:29]} 54. Rh6 {[%clk 0:00:07]} 1/2-1/2


[Site "https://www.chess.com"]

[Event "Titled Tuesday Blitz December 27 Early 2022"]
[White "Cremisi, Daniel"]
[Black "Rose, Felix"]
[WhiteFideId "2089882"]
[BlackFideId "5105722"]
[WhiteElo "2170"]
[BlackElo "2091"]
[Result "1-0"]
[Round "01"]
[TimeControl "180+2"]
[Date "2022.12.27"]
[WhiteClock "0:00:06"]
[BlackClock "0:00:04"]

1. d4 {[%clk 0:02:59]}  d5 {[%clk 0:02:59]} 2. c4 {[%clk 0:02:59]}  e6 {[%clk 0:02:59]} 3. Nc3 {[%clk 0:03:00]}  Nf6 {[%clk 0:03:00]} 4. cxd5 {[%clk 0:03:00]}  exd5 {[%clk 0:03:00]} 5. Bg5 {[%clk 0:03:00]}  c6 {[%clk 0:03:01]} 6. e3 {[%clk 0:03:00]}  Be7 {[%clk 0:03:01]} 7. Bd3 {[%clk 0:03:00]}  Nbd7 {[%clk 0:03:02]} 8. Qc2 {[%clk 0:03:00]}  h6 {[%clk 0:03:02]} 9. Bh4 {[%clk 0:02:59]}  Nh5 {[%clk 0:03:02]} 10. Bxe7 {[%clk 0:02:58]}  Qxe7 {[%clk 0:03:03]} 11. Nge2 {[%clk 0:02:57]}  Nb6 {[%clk 0:03:03]} 12. O-O {[%clk 0:02:57]}  O-O {[%clk 0:03:03]} 13. Rab1 {[%clk 0:02:55]}  a5 {[%clk 0:02:53]} 14. a3 {[%clk 0:02:47]}  a4 {[%clk 0:02:49]} 15. Rfe1 {[%clk 0:02:38]}  Bd7 {[%clk 0:02:28]} 16. b4 {[%clk 0:02:28]}  axb3 {[%clk 0:01:52]} 17. Rxb3 {[%clk 0:02:27]}  Nc8 {[%clk 0:01:44]} 18. Rxb7 {[%clk 0:02:22]}  Rxa3 {[%clk 0:01:42]} 19. Qb2 {[%clk 0:01:51]}  Ra8 {[%clk 0:01:24]} 20. Ra1 {[%clk 0:01:41]}  Nd6 {[%clk 0:01:18]} 21. Rxa8 {[%clk 0:01:34]}  Rxa8 {[%clk 0:01:17]} 22. Rb8+ {[%clk 0:01:34]}  Rxb8 {[%clk 0:01:17]} 23. Qxb8+ {[%clk 0:01:34]}  Ne8 {[%clk 0:01:14]} 24. g3 {[%clk 0:01:19]}  Qd6 {[%clk 0:01:12]} 25. Qd8 {[%clk 0:01:14]}  Qc7 {[%clk 0:00:52]} 26. Qh4 {[%clk 0:01:06]}  Nhf6 {[%clk 0:00:49]} 27. Na4 {[%clk 0:01:03]}  Qa5 {[%clk 0:00:33]} 28. Nc5 {[%clk 0:01:00]}  Bg4 {[%clk 0:00:30]} 29. Nf4 {[%clk 0:00:12]}  Bf3 {[%clk 0:00:23]} 30. Bf1 {[%clk 0:00:11]}  Qe1 {[%clk 0:00:21]} 31. Qh3 {[%clk 0:00:11]}  Ng4 {[%clk 0:00:19]} 32. Nfd3 {[%clk 0:00:08]}  Qd1 {[%clk 0:00:16]} 33. Nd7 {[%clk 0:00:06]}  Be2 {[%clk 0:00:12]} 34. Nf4 {[%clk 0:00:06]}  Qe1 {[%clk 0:00:07]} 35. Ne5 {[%clk 0:00:06]}  Qxf2+ {[%clk 0:00:06]} 36. Kh1 {[%clk 0:00:07]}  Bxf1 {[%clk 0:00:04]} 37. Qxg4 {[%clk 0:00:06]} 1-0


[Site "https://www.chess.com"]

[Event "Titled Tuesday Blitz December 27 Early 2022"]
[White "Cruz, William Ferreira Da"]
[Black "Ordekalog"]
[WhiteFideId "2118050"]
[WhiteElo "2216"]
[BlackElo "2826"]
[Result "1-0"]
[Round "01"]
[TimeControl "180+2"]
[Date "2022.12.27"]
[WhiteClock "0:00:04"]
[BlackClock "0:00:05"]

1. d4 {[%clk 0:02:59]}  d5 {[%clk 0:02:58]} 2. c4 {[%clk 0:02:58]}  e6 {[%clk 0:02:58]} 3. Nc3 {[%clk 0:02:58]}  c5 {[%clk 0:02:58]} 4. cxd5 {[%clk 0:02:58]}  cxd4 {[%clk 0:02:58]} 5. Qa4+ {[%clk 0:02:51]}  Bd7 {[%clk 0:02:56]} 6. Qxd4 {[%clk 0:02:50]}  exd5 {[%clk 0:02:56]} 7. Nf3 {[%clk 0:02:33]}  Nc6 {[%clk 0:02:55]} 8. Qd1 {[%clk 0:02:11]}  Nf6 {[%clk 0:02:54]} 9. Bg5 {[%clk 0:02:10]}  Bb4 {[%clk 0:02:47]} 10. e3 {[%clk 0:02:06]}  h6 {[%clk 0:02:45]} 11. Bxf6 {[%clk 0:01:54]}  Qxf6 {[%clk 0:02:33]} 12. Nd4 {[%clk 0:01:54]}  O-O {[%clk 0:02:29]} 13. Be2 {[%clk 0:01:52]}  Rad8 {[%clk 0:02:26]} 14. O-O {[%clk 0:01:50]}  Bxc3 {[%clk 0:02:21]} 15. bxc3 {[%clk 0:01:49]}  Rfe8 {[%clk 0:02:13]} 16. Qb3 {[%clk 0:01:27]}  Bc8 {[%clk 0:02:10]} 17. Bf3 {[%clk 0:00:51]}  Na5 {[%clk 0:01:47]} 18. Qb5 {[%clk 0:00:49]}  b6 {[%clk 0:01:43]} 19. Rfd1 {[%clk 0:00:22]}  a6 {[%clk 0:01:33]} 20. Qb4 {[%clk 0:00:18]}  Bb7 {[%clk 0:01:07]} 21. Be2 {[%clk 0:00:18]}  Rc8 {[%clk 0:01:04]} 22. Rab1 {[%clk 0:00:18]}  Nc4 {[%clk 0:00:50]} 23. Bxc4 {[%clk 0:00:09]}  dxc4 {[%clk 0:00:44]} 24. Qxb6 {[%clk 0:00:08]}  Bc6 {[%clk 0:00:43]} 25. Nxc6 {[%clk 0:00:07]}  Rxc6 {[%clk 0:00:44]} 26. Qd4 {[%clk 0:00:07]}  Qg6 {[%clk 0:00:42]} 27. Rb4 {[%clk 0:00:06]}  Kh7 {[%clk 0:00:35]} 28. Rxc4 {[%clk 0:00:05]}  Rf6 {[%clk 0:00:28]} 29. Qd3 {[%clk 0:00:05]}  Rf5 {[%clk 0:00:23]} 30. Rd4 {[%clk 0:00:03]}  Kg8 {[%clk 0:00:10]} 31. Rd8 {[%clk 0:00:03]}  Rxd8 {[%clk 0:00:09]} 32. Qxd8+ {[%clk 0:00:03]}  Kh7 {[%clk 0:00:10]} 33. Qd3 {[%clk 0:00:03]}  Kg8 {[%clk 0:00:09]} 34. c4 {[%clk 0:00:03]}  Qf6 {[%clk 0:00:08]} 35. Qd8+ {[%clk 0:00:02]}  Kh7 {[%clk 0:00:07]} 36. Qxf6 {[%clk 0:00:02]}  Rxf6 {[%clk 0:00:08]} 37. Rc1 {[%clk 0:00:02]}  Rc6 {[%clk 0:00:07]} 38. Kf1 {[%clk 0:00:02]}  Kg6 {[%clk 0:00:07]} 39. c5 {[%clk 0:00:03]}  Kf5 {[%clk 0:00:08]} 40. Ke2 {[%clk 0:00:03]}  Ke4 {[%clk 0:00:09]} 41. f3+ {[%clk 0:00:03]}  Kd5 {[%clk 0:00:09]} 42. e4+ {[%clk 0:00:03]}  Kd4 {[%clk 0:00:09]} 43. Rd1+ {[%clk 0:00:03]}  Ke5 {[%clk 0:00:07]} 44. Rd5+ {[%clk 0:00:03]}  Ke6 {[%clk 0:00:07]} 45. Kd3 {[%clk 0:00:04]}  g6 {[%clk 0:00:05]} 46. Kc4 {[%clk 0:00:04]}  Ke7 {[%clk 0:00:02]} 47. Rd6 {[%clk 0:00:03]}  Rxd6 {[%clk 0:00:02]} 48. cxd6+ {[%clk 0:00:03]}  Kxd6 {[%clk 0:00:03]} 49. Kd4 {[%clk 0:00:04]}  f6 {[%clk 0:00:03]} 50. f4 {[%clk 0:00:04]}  Kc6 {[%clk 0:00:03]} 51. e5 {[%clk 0:00:04]}  f5 {[%clk 0:00:04]} 52. Kc4 {[%clk 0:00:03]}  Kd7 {[%clk 0:00:03]} 53. Kd5 {[%clk 0:00:03]}  a5 {[%clk 0:00:04]} 54. a4 {[%clk 0:00:03]}  g5 {[%clk 0:00:05]} 55. e6+ {[%clk 0:00:03]}  Ke7 {[%clk 0:00:04]} 56. Ke5 {[%clk 0:00:03]}  gxf4 {[%clk 0:00:04]} 57. Kxf5 {[%clk 0:00:03]}  h5 {[%clk 0:00:04]} 58. h4 {[%clk 0:00:02]}  Kd6 {[%clk 0:00:04]} 59. Kxf4 {[%clk 0:00:02]}  Kxe6 {[%clk 0:00:04]} 60. Kg5 {[%clk 0:00:03]}  Ke5 {[%clk 0:00:05]} 61. Kxh5 {[%clk 0:00:04]}  Kf5 {[%clk 0:00:05]} 62. Kh6 {[%clk 0:00:04]}  Kg4 {[%clk 0:00:05]} 63. h5 {[%clk 0:00:05]}  Kf5 {[%clk 0:00:05]} 64. Kg7 {[%clk 0:00:04]} 1-0


[Site "https://www.chess.com"]